bitfinex-derivatives/quotes_BNBF0:USTF0_20250130
["timestamp","ask_amount","ask_price","bid_price","bid_amount"]
[1738210649822,0.27216934,675.75,674.84,0.29636654]
[1738210650024,0.27216934,675.74,674.84,0.29636654]
[1738210650321,0.27216934,675.73,674.84,0.29636654]
[1738210653824,1.1098604,675.71,674.84,0.29636654]
[1738210654125,0.27216934,675.7,674.84,0.29636654]
[1738210657122,1.1098604,675.58,674.84,0.29636654]
[1738210657321,0.27216934,675.57,674.84,0.29636654]
[1738210657927,1.1098604,675.58,674.84,0.29636654]
[1738210658126,0.27216647,675.57,674.84,0.29636654]
[1738210658326,1.1098604,675.58,674.84,0.29636654]
[1738210660934,1.1098604,675.81,674.84,0.29636654]
[1738210662836,1.1098604,675.93,674.84,0.29636654]
[1738210665438,0.27211658,675.92,674.84,0.29636654]
[1738210665836,0.27211658,675.94,674.84,0.29636654]
[1738210666035,0.27211658,675.93,674.84,0.29636654]
[1738210666236,0.27211658,675.94,674.84,0.29636654]
[1738210666437,0.27211658,675.93,674.84,0.29636654]
[1738210666642,0.27211658,675.94,674.84,0.29636654]
[1738210666841,0.27212527,675.93,674.84,0.29636654]
[1738210667143,0.27212527,675.92,674.84,0.29636654]
[1738210667341,0.27212527,675.94,674.84,0.29636654]
[1738210667542,0.27212527,675.93,674.84,0.29636654]
[1738210667741,0.27212527,675.92,674.84,0.29636654]
[1738210668042,0.27212527,675.91,674.84,0.29636654]
[1738210668242,0.27212527,675.9,674.84,0.29636654]
[1738210668444,0.27212527,675.94,674.84,0.29636654]
[1738210668643,0.27212527,675.93,674.84,0.29636654]
[1738210668838,0.60154217,676.38,674.84,0.29636654]
[1738210668839,1.38198567,675.92,674.84,0.29636654]
[1738210669044,0.27212527,675.91,674.84,0.29636654]
[1738210671843,1.1098604,675.78,674.84,0.29636654]
[1738210675254,1.1098604,675.89,674.84,0.29636654]
[1738210675454,0.27211096,675.88,674.84,0.29636654]
[1738210679351,0.27211096,675.9,674.84,0.29636654]
[1738210685854,1.1098604,675.85,674.84,0.29636654]
[1738210686055,0.27211096,675.84,674.84,0.29636654]
[1738210686252,0.27211085,675.83,674.84,0.29636654]
[1738210686452,0.27211085,675.84,674.84,0.29636654]
[1738210687956,1.1098604,675.85,674.84,0.29636654]
[1738210689856,1.1098604,675.84,674.84,0.29636654]
[1738210693057,1.1098604,675.93,674.84,0.29636654]
[1738210693255,0.27208082,675.92,674.84,0.29636654]
[1738210695661,1.1098604,675.93,674.84,0.29636654]
[1738210695861,0.27206719,675.92,674.84,0.29636654]
[1738210696560,1.1098604,675.84,674.84,0.29636654]
[1738210697758,0.27206398,675.83,674.85,0.2425514]
[1738210698163,0.27206532,675.82,674.86,0.24255456]
[1738210698460,0.27206532,675.81,674.88,0.29634898]
[1738210698655,0.27206489,675.8,674.89,0.24255075]
[1738210698862,0.27206489,675.83,674.91,0.2963358]
[1738210699055,0.27206489,675.82,674.91,0.2963358]
[1738210699259,0.27206489,675.83,674.91,0.2963358]
[1738210699461,0.27206489,675.82,674.91,0.2963358]
[1738210699657,0.27206489,675.83,674.91,0.2963358]
[1738210700060,0.27205527,675.82,674.91,0.2963358]
[1738210700358,0.60140403,676.17,674.91,0.2963358]
[1738210700359,1.1098604,675.78,674.92,0.24252612]
[1738210700660,1.1098604,675.78,674.93,0.29632702]
[1738210704363,1.1098604,675.85,674.93,0.29632702]
[1738210708164,1.1098604,676.11,674.93,0.29632702]
[1738210708165,1.1098604,675.96,674.93,0.29632702]
[1738210711370,1.1098604,676.03,674.93,0.29632702]
[1738210711570,0.27202476,676.02,674.94,0.24246549]
[1738210711770,0.27202426,676.01,674.96,0.29631385]
[1738210712072,1.1098604,676.03,674.96,0.29631385]
[1738210712073,0.27202426,676.0,674.96,0.29631385]
[1738210712270,0.27202426,675.99,674.96,0.29631385]
[1738210712467,0.27202426,675.98,674.96,0.29631385]
[1738210712668,0.27202426,676.02,674.96,0.29631385]
[1738210712869,0.27202426,676.01,674.96,0.29631385]
[1738210713072,0.27202426,676.02,674.96,0.29631385]
[1738210713370,0.27202426,676.01,674.96,0.29631385]
[1738210713572,0.27202426,676.0,674.96,0.29631385]
[1738210713772,0.27202426,675.99,674.96,0.29631385]
[1738210713969,0.27202426,676.02,674.96,0.29631385]
[1738210714173,0.60134101,676.37,674.96,0.29631385]
[1738210714174,1.1098604,675.99,674.96,0.29631385]
[1738210714367,0.27202426,675.98,674.96,0.29631385]
[1738210715167,0.27202935,675.97,674.96,0.29631385]
[1738210715368,0.27202935,675.98,674.96,0.29631385]
[1738210715569,0.27202935,675.97,674.96,0.29631385]
[1738210715775,0.27202935,675.96,674.96,0.29631385]
[1738210716070,0.27202935,675.95,674.96,0.29631385]
[1738210716276,0.27202935,675.94,674.96,0.29631385]
[1738210716467,0.27202935,675.93,674.96,0.29631385]
[1738210716671,0.27202935,675.98,674.96,0.29631385]
[1738210716871,0.27202935,675.97,674.96,0.29631385]
[1738210717073,1.38188975,675.98,674.96,0.29631385]
[1738210717373,0.27202935,675.97,674.96,0.29631385]
[1738210718776,0.27202935,675.97,674.97,0.24248109]
[1738210719273,0.27202935,675.97,674.96,0.29631385]
[1738210719469,0.27202935,675.97,674.97,0.24249502]
[1738210719675,0.27202935,675.97,674.99,0.29630068]
[1738210719978,1.1098604,675.94,674.99,0.29630068]
[1738210720175,0.27202627,675.93,674.99,0.29630068]
[1738210723480,1.1098604,675.94,674.99,0.29630068]
[1738210723675,1.38188302,675.93,674.99,0.29630068]
[1738210724870,0.27202262,675.92,674.99,0.29630068]
[1738210726371,1.1098604,675.9,674.99,0.29630068]
[1738210729882,5.30851831,684.06,674.99,0.29630068]
[1738210729883,1.1098604,676.13,674.99,0.29630068]
[1738210733390,1.1098604,676.18,674.99,0.29630068]
[1738210734490,0.27197502,676.17,674.99,0.29630068]
[1738210736287,1.1098604,676.18,674.99,0.29630068]
[1738210736490,0.27197337,676.17,674.99,0.29630068]
[1738210736690,1.1098604,676.12,674.99,0.29630068]
[1738210740192,1.1098604,676.14,674.99,0.29630068]
[1738210740388,0.27197459,676.13,674.99,0.29630068]
[1738210740992,1.1098604,676.14,674.99,0.29630068]
[1738210741192,1.1098604,676.14,675.0,0.24239313]
[1738210741193,0.27197527,676.13,675.0,0.24239313]
[1738210741390,0.27197527,676.13,675.02,0.29628751]
[1738210741791,0.27197527,676.13,675.03,0.24236212]
[1738210741987,0.27197527,676.13,675.05,0.29627435]
[1738210742191,0.27197527,676.13,675.06,0.24235591]
[1738210742392,0.27197527,676.13,675.08,0.29626118]
[1738210742593,0.27197527,676.13,675.09,0.24235591]
[1738210742792,0.27197527,676.13,675.11,0.29624801]
[1738210743493,1.1098604,676.09,675.11,0.29624801]
[1738210743694,0.27197527,676.08,675.11,0.29624801]
[1738210744296,0.27197527,676.08,675.12,0.24236188]
[1738210744589,0.27197527,676.08,674.97,1.10824375]
[1738210744590,0.27197527,676.08,675.13,0.29623924]
[1738210746695,1.38183567,676.08,675.13,0.29623924]
[1738210746896,0.27197527,676.07,675.13,0.29623924]
[1738210747997,0.27197527,676.07,675.14,0.24236969]
[1738210748396,0.27197527,676.07,675.15,0.29623046]
[1738210749397,0.27196631,676.06,675.15,0.29623046]
[1738210749597,0.27196631,676.05,675.15,0.29623046]
[1738210749798,0.27196631,676.04,675.15,0.29623046]
[1738210750000,0.27196631,676.03,675.15,0.29623046]
[1738210750195,0.27196631,676.02,675.15,0.29623046]
[1738210750397,0.27196631,676.07,675.15,0.29623046]
[1738210750601,0.27196631,676.06,675.15,0.29623046]
[1738210750802,0.27196631,676.07,675.15,0.29623046]
[1738210750998,1.1098604,676.08,675.15,0.29623046]
[1738210751304,0.27196597,676.07,675.15,0.29623046]
[1738210752303,1.1098604,676.08,675.15,0.29623046]
[1738210753000,1.1098604,676.07,675.15,0.29623046]
[1738210756409,0.76995933,676.57,675.15,0.29623046]
[1738210756410,1.1098604,676.21,675.15,0.29623046]
[1738210756709,0.27196921,676.2,675.15,0.29623046]
[1738210758111,0.27197392,676.19,675.15,0.29623046]
[1738210758311,0.27197392,676.2,675.15,0.29623046]
[1738210758509,0.27197392,676.19,675.15,0.29623046]
[1738210758709,0.27197392,676.2,675.15,0.29623046]
[1738210758910,0.27197392,676.19,675.15,0.29623046]
[1738210759111,0.27197392,676.2,675.15,0.29623046]
[1738210759413,0.27197392,676.19,675.15,0.29623046]
[1738210759608,0.27197392,676.2,675.15,0.29623046]
[1738210759808,1.1098604,676.17,675.15,0.29623046]
[1738210761814,0.27197446,676.16,675.15,0.29623046]
[1738210762218,1.1098604,676.17,675.15,0.29623046]
[1738210762515,0.27197757,676.16,675.15,0.29623046]
[1738210762715,1.1098604,676.17,675.15,0.29623046]
[1738210763417,1.1098604,676.15,675.15,0.29623046]
[1738210767922,1.1098604,676.12,675.15,0.29623046]
[1738210772024,1.1098604,676.14,675.15,0.29623046]
[1738210772720,0.27201171,676.13,675.15,0.29623046]
[1738210775630,1.1098604,676.03,675.15,0.29623046]
[1738210777431,0.27200162,676.02,675.15,0.29623046]
[1738210778630,0.27200162,676.08,675.15,0.29623046]
[1738210778933,0.27200162,676.07,675.15,0.29623046]
[1738210779130,1.1098604,676.09,675.15,0.29623046]
[1738210781934,1.1098604,676.14,675.15,0.29623046]
[1738210782134,0.27198143,676.13,675.15,0.29623046]
[1738210783531,1.1098604,676.14,675.15,0.29623046]
[1738210783831,0.27198311,676.13,675.15,0.29623046]
[1738210785036,0.27198637,676.12,675.15,0.29623046]
[1738210785235,0.27198637,676.13,675.15,0.29623046]
[1738210785437,0.27198637,676.12,675.15,0.29623046]
[1738210785638,0.27198637,676.14,675.15,0.29623046]
[1738210785835,0.27198637,676.13,675.15,0.29623046]
[1738210786031,0.27198637,676.14,675.15,0.29623046]
[1738210790035,1.1098604,676.1,675.15,0.29623046]
[1738210790237,0.27198637,676.09,675.15,0.29623046]
[1738210792140,1.1098604,676.1,675.15,0.29623046]
[1738210792437,0.271996,676.09,675.15,0.29623046]
[1738210793134,1.1098604,676.02,675.15,0.29623046]
[1738210797142,1.1098604,676.07,675.15,0.29623046]
[1738210800141,1.1098604,676.14,675.15,0.29623046]
[1738210802243,0.27196699,676.13,675.15,0.29623046]
[1738210803341,0.27196699,676.12,675.15,0.29623046]
[1738210803538,0.27196699,676.11,675.15,0.29623046]
[1738210803736,0.27196699,676.14,675.15,0.29623046]
[1738210804045,0.2719583,676.13,675.15,0.29623046]
[1738210804244,0.2719583,676.12,675.15,0.29623046]
[1738210804447,0.2719583,676.11,675.15,0.29623046]
[1738210804642,1.1098604,676.15,675.15,0.29623046]
[1738210804847,0.2719591,676.14,675.15,0.29623046]
[1738210807051,1.1098604,676.13,675.15,0.29623046]
[1738210807351,0.2719591,676.12,675.15,0.29623046]
[1738210807552,1.1098604,676.13,675.15,0.29623046]
[1738210807744,0.27195404,676.12,675.15,0.29623046]
[1738210807945,1.1098604,676.13,675.15,0.29623046]
[1738210809853,0.27195309,676.12,675.15,0.29623046]
[1738210811254,1.1098604,676.17,675.15,0.29623046]
[1738210811552,0.27195509,676.16,675.15,0.29623046]
[1738210812153,1.1098604,676.17,675.15,0.29623046]
[1738210815052,1.1098604,676.18,675.15,0.29623046]
[1738210818664,0.77014729,676.78,675.15,0.29623046]
[1738210818665,1.1098604,676.25,675.15,0.29623046]
[1738210822265,1.1098604,676.29,675.15,0.29623046]
[1738210825770,1.1098604,676.48,675.15,0.29623046]
[1738210829270,1.1098604,676.58,675.15,0.29623046]
[1738210829463,0.27188476,676.57,675.15,0.29623046]
[1738210832873,0.27188411,676.56,675.15,0.29623046]
[1738210833073,0.27188411,676.55,675.15,0.29623046]
[1738210833273,0.27188411,676.54,675.15,0.29623046]
[1738210833476,0.27188411,676.53,675.15,0.29623046]
[1738210833675,0.27188411,676.57,675.15,0.29623046]
[1738210833878,0.27188411,676.56,675.15,0.29623046]
[1738210834075,0.27188411,676.57,675.15,0.29623046]
[1738210834277,0.27188411,676.56,675.15,0.29623046]
[1738210834577,0.27188411,676.55,675.15,0.29623046]
[1738210834878,0.27188411,676.54,675.15,0.29623046]
[1738210835078,0.27188411,676.53,675.15,0.29623046]
[1738210835377,0.27188411,676.52,675.15,0.29623046]
[1738210835579,0.27188411,676.51,675.15,0.29623046]
[1738210835876,0.27188411,676.5,675.15,0.29623046]
[1738210836078,0.27188411,676.57,675.16,0.2419188]
[1738210836281,0.27188411,676.56,675.18,0.2962173]
[1738210836579,0.27188411,676.55,675.19,0.2419188]
[1738210836780,1.1098604,676.49,675.21,0.29620414]
[1738210837075,0.27188411,676.48,675.22,0.2419188]
[1738210837282,0.27188411,676.48,675.24,0.29619098]
[1738210839778,1.1098604,676.36,675.24,0.29619098]
[1738210842088,0.27190073,676.35,675.24,0.29619098]
[1738210842289,1.1098604,676.36,675.24,0.29619098]
[1738210842989,1.1098604,676.42,675.24,0.29619098]
[1738210843190,0.27190369,676.41,675.24,0.29619098]
[1738210845086,0.27190193,676.4,675.24,0.29619098]
[1738210845290,0.27190193,676.41,675.24,0.29619098]
[1738210845489,0.27190193,676.4,675.24,0.29619098]
[1738210845691,0.27190193,676.41,675.24,0.29619098]
[1738210845891,0.76960038,676.85,675.24,0.29619098]
[1738210845892,1.1098604,676.38,675.24,0.29619098]
[1738210846091,0.27190193,676.37,675.24,0.29619098]
[1738210848190,0.27190558,676.36,675.24,0.29619098]
[1738210848387,1.1098604,676.33,675.24,0.29619098]
[1738210848790,0.27190325,676.32,675.24,0.29619098]
[1738210849093,1.1098604,676.33,675.24,0.29619098]
[1738210851392,1.1098604,676.34,675.24,0.29619098]
[1738210854094,1.1098604,676.36,675.24,0.29619098]
[1738210861097,1.10420088,676.36,675.24,0.29619098]
[1738210863211,1.1098604,676.66,675.24,0.29619098]
[1738210864304,1.1098604,676.66,675.25,0.24140042]
[1738210865908,1.1098604,676.99,675.25,0.24140042]
[1738210866108,0.27179032,676.98,675.25,0.24140042]
[1738210869310,0.27179032,677.01,675.25,0.24140042]
[1738210869604,0.27179032,677.0,675.25,0.24140042]
[1738210869808,0.27179032,677.01,675.25,0.24140042]
[1738210870009,0.27179032,677.0,675.25,0.24140042]
[1738210870209,0.27179032,676.99,675.25,0.24140042]
[1738210870410,0.27179032,676.98,675.25,0.24140042]
[1738210870610,0.27179032,677.01,675.25,0.24140042]
[1738210870910,0.27179032,677.0,675.25,0.24140042]
[1738210871102,0.27179032,677.01,675.25,0.24140042]
[1738210873511,0.27176568,677.0,675.26,0.24129342]
[1738210873712,0.27176568,676.99,675.27,0.24129342]
[1738210873908,0.27176568,677.01,675.25,0.24129342]
[1738210874113,0.27176568,677.0,675.26,0.24129342]
[1738210874310,0.27176568,677.01,675.27,0.24129342]
[1738210874515,0.27176568,677.0,675.28,0.24129342]
[1738210874712,0.27176568,676.99,675.29,0.24129342]
[1738210874909,0.27176568,677.01,675.25,0.24129342]
[1738210875112,0.27176568,677.0,675.26,0.24129342]
[1738210875309,0.27176568,676.99,675.27,0.24129342]
[1738210875512,0.29541224,677.02,675.25,0.24129342]
[1738210875513,0.27176568,677.01,675.25,0.24129342]
[1738210875714,0.27176568,677.0,675.26,0.24129342]
[1738210875917,0.27176568,677.01,675.25,0.24129342]
[1738210876116,0.27176568,677.0,675.26,0.24129342]
[1738210876317,0.27176568,676.99,675.27,0.24129342]
[1738210876513,0.27176568,676.99,675.24,0.29619098]
[1738210876514,0.27176568,676.98,675.28,0.24129342]
[1738210876817,0.27172801,676.97,675.29,0.24121491]
[1738210877012,0.27172801,676.96,675.3,0.24121491]
[1738210877218,0.27172801,676.95,675.31,0.24121491]
[1738210877414,0.27172801,677.01,675.25,0.24121491]
[1738210877619,0.27172801,677.0,675.26,0.24121491]
[1738210877813,0.27172801,677.01,675.25,0.24121491]
[1738210878012,0.27172801,677.0,675.26,0.24121491]
[1738210878214,0.27172801,677.29,675.25,0.24121491]
[1738210878420,0.2717099,677.28,675.26,0.24115677]
[1738210878620,0.2717099,677.27,675.27,0.24115677]
[1738210878819,1.1098604,677.3,675.24,0.29619098]
[1738210878820,0.2717099,677.26,675.28,0.24115677]
[1738210879018,0.2717099,677.25,675.29,0.24115677]
[1738210879217,0.2717099,677.24,675.3,0.24115677]
[1738210879420,0.2717099,677.23,675.31,0.24115677]
[1738210879615,0.2717099,677.22,675.32,0.24115677]
[1738210879815,0.2717099,677.21,675.25,0.24115677]
[1738210880017,0.2717099,677.21,675.33,0.24115677]
[1738210880321,0.2717099,677.2,675.34,0.24115677]
[1738210880522,0.2717099,677.19,675.25,0.24115677]
[1738210880721,0.2717099,677.18,675.26,0.24115677]
[1738210880921,0.2717099,677.17,675.27,0.24115677]
[1738210881121,0.2717099,677.16,675.28,0.24115677]
[1738210881317,0.2717099,677.28,675.25,0.24115677]
[1738210881523,0.2717099,677.27,675.26,0.24115677]
[1738210881723,0.2717099,677.28,675.25,0.24115677]
[1738210883825,0.2717099,677.28,675.27,1.10824375]
[1738210884025,0.2717099,677.35,675.28,0.24115677]
[1738210884221,0.2717099,677.34,675.28,0.24115677]
[1738210884425,0.2717099,677.33,675.28,0.24115677]
[1738210884623,0.2717099,677.35,675.38,0.29612958]
[1738210884824,0.2717099,677.34,675.39,0.24115677]
[1738210885025,0.2717099,677.35,675.39,0.24115677]
[1738210885324,0.2717099,677.35,675.41,0.29611643]
[1738210885524,0.2717099,677.35,675.42,0.24115677]
[1738210885722,0.2717099,677.35,675.44,0.29610328]
[1738210885923,0.2717099,677.35,675.45,0.24115677]
[1738210886327,0.2717099,677.35,675.47,0.29609012]
[1738210886627,0.2717099,677.35,675.48,0.24115677]
[1738210886827,0.2717099,677.35,675.5,0.29607698]
[1738210887029,0.2717099,677.57,675.5,0.29607698]
[1738210887328,0.29518116,677.55,675.5,0.29607698]
[1738210887526,0.2717099,677.54,675.5,0.29607698]
[1738210888122,0.29518988,677.53,675.5,0.29607698]
[1738210888325,0.2717099,677.52,675.5,0.29607698]
[1738210888522,0.29518988,677.53,675.5,0.29607698]
[1738210888826,0.27170052,677.52,675.5,0.29607698]
[1738210889425,0.29519859,677.51,675.5,0.29607698]
[1738210889625,0.27170052,677.5,675.5,0.29607698]
[1738210889822,0.2952073,677.49,675.5,0.29607698]
[1738210890024,0.27170052,677.48,675.5,0.29607698]
[1738210890224,0.29521602,677.47,675.5,0.29607698]
[1738210890420,0.27169982,677.46,675.5,0.29607698]
[1738210891030,0.29522473,677.45,675.5,0.29607698]
[1738210891324,0.27169982,677.44,675.5,0.29607698]
[1738210891530,0.29523345,677.43,675.5,0.29607698]
[1738210891728,0.27169982,677.42,675.5,0.29607698]
[1738210893630,0.29523345,677.43,675.5,0.29607698]
[1738210893828,0.27170349,677.42,675.5,0.29607698]
[1738210896532,0.29523345,677.43,675.5,0.29607698]
[1738210896731,0.27176841,677.42,675.5,0.29607698]
[1738210896934,0.27176841,677.41,675.5,0.29607698]
[1738210897135,0.27176841,677.4,675.5,0.29607698]
[1738210897328,0.27176841,677.39,675.5,0.29607698]
[1738210897633,0.27176841,677.38,675.5,0.29607698]
[1738210897832,0.27176841,677.37,675.5,0.29607698]
[1738210898027,0.27176841,677.36,675.5,0.29607698]
[1738210898231,0.27176841,677.35,675.5,0.29607698]
[1738210898431,0.29527704,677.33,675.5,0.29607698]
[1738210898632,0.27176841,677.32,675.5,0.29607698]
[1738210898832,0.27176841,677.31,675.5,0.29607698]
[1738210899134,1.1098604,676.99,675.5,0.29607698]
[1738210899333,0.27176841,676.98,675.5,0.29607698]
[1738210902437,0.27176841,677.0,675.5,0.29607698]
[1738210902638,0.27176841,676.99,675.5,0.29607698]
[1738210902837,0.27176841,677.0,675.5,0.29607698]
[1738210905247,1.1098604,677.01,675.5,0.29607698]
[1738210905847,1.1098604,677.05,675.5,0.29607698]
[1738210906443,0.27173544,676.99,675.5,0.29607698]
[1738210906846,0.27173544,676.98,675.5,0.29607698]
[1738210907051,0.27173544,677.04,675.5,0.29607698]
[1738210907249,0.27173544,676.97,675.5,0.29607698]
[1738210907450,0.27173544,676.96,675.5,0.29607698]
[1738210907646,0.27173544,677.04,675.5,0.29607698]
[1738210907850,0.27173544,677.03,675.5,0.29607698]
[1738210908057,0.27173544,677.04,675.5,0.29607698]
[1738210908248,0.27173544,677.03,675.5,0.29607698]
[1738210908448,0.27173544,677.02,675.5,0.29607698]
[1738210908645,0.27173544,677.04,675.5,0.29607698]
[1738210908844,0.27173544,677.03,675.5,0.29607698]
[1738210909051,0.27173544,677.02,675.5,0.29607698]
[1738210909348,0.27173544,677.01,675.5,0.29607698]
[1738210909548,0.27173544,677.24,675.5,0.29607698]
[1738210909751,0.27173544,677.23,675.5,0.29607698]
[1738210910053,0.27173544,677.22,675.5,0.29607698]
[1738210910249,1.1098604,677.25,675.5,0.29607698]
[1738210910450,0.27173779,677.24,675.5,0.29607698]
[1738210911551,1.1098604,677.22,675.5,0.29607698]
[1738210911750,0.27173779,677.21,675.5,0.29607698]
[1738210913656,1.1098604,677.22,675.5,0.29607698]
[1738210913956,0.2717394,677.21,675.5,0.29607698]
[1738210914654,1.1098604,677.2,675.5,0.29607698]
[1738210914852,0.2717394,677.19,675.5,0.29607698]
[1738210915949,0.2717394,677.32,675.5,0.29607698]
[1738210916149,0.2717394,677.31,675.5,0.29607698]
[1738210916353,0.29527704,677.33,675.5,0.29607698]
[1738210916354,0.2717394,677.32,675.51,0.24160446]
[1738210916549,0.2717394,677.32,675.5,0.29607698]
[1738210917249,0.27173971,677.31,675.5,0.29607698]
[1738210917447,0.27173971,677.3,675.5,0.29607698]
[1738210917653,0.27173971,677.32,675.5,0.29607698]
[1738210917954,0.27173971,677.31,675.5,0.29607698]
[1738210918154,0.27173971,677.32,675.5,0.29607698]
[1738210918350,0.27173971,677.31,675.5,0.29607698]
[1738210918550,0.27173971,677.32,675.5,0.29607698]
[1738210918754,0.29527704,677.33,675.5,0.29607698]
[1738210918955,0.27174564,677.32,675.5,0.29607698]
[1738210919155,1.10611818,677.04,675.5,0.29607698]
[1738210919352,0.27174564,677.03,675.5,0.29607698]
[1738210920455,1.10611818,677.04,675.5,0.29607698]
[1738210921457,1.06475842,677.31,675.5,0.29607698]
[1738210921458,1.10611818,677.01,675.5,0.29607698]
[1738210924057,0.29528576,677.31,675.5,0.29607698]
[1738210924258,0.27167535,677.3,675.5,0.29607698]
[1738210926858,0.29528576,677.31,675.5,0.29607698]
[1738210927053,0.27167672,677.3,675.5,0.29607698]
[1738210930363,0.27167672,677.3,675.51,0.24137226]
[1738210931463,0.27167672,677.3,675.53,0.29606383]
[1738210931665,0.27167672,677.3,675.54,0.24137226]
[1738210931866,0.27167672,677.3,675.56,0.29605068]
[1738210932165,0.27167672,677.3,675.57,0.24137226]
[1738210932366,0.27167672,677.3,675.59,0.29603753]
[1738210932566,0.27167672,677.3,675.6,0.24137226]
[1738210932766,0.27167672,677.3,675.62,0.29602439]
[1738210933066,0.27167672,677.3,675.63,0.24137226]
[1738210933266,0.27167672,677.3,675.65,0.29601124]
[1738210933462,0.27167672,677.3,675.66,0.24137226]
[1738210933663,0.27167672,677.3,675.68,0.2959981]
[1738210936870,0.27167672,677.3,675.69,0.24126775]
[1738210937070,0.271671,677.29,675.71,0.29598496]
[1738210937270,0.271671,677.3,675.71,0.29598496]
[1738210937471,1.10611818,677.25,675.71,0.29598496]
[1738210937666,1.10611818,677.25,675.72,0.24127188]
[1738210937667,0.271671,677.24,675.72,0.24127188]
[1738210938562,1.10611818,677.25,675.74,0.29597182]
[1738210938765,0.27167379,677.24,675.74,0.29597182]
[1738210941572,1.10611818,677.14,675.74,0.29597182]
[1738210941771,0.27167379,677.13,675.74,0.29597182]
[1738210944477,0.27167379,677.13,675.75,0.24133845]
[1738210944677,0.27167379,677.13,675.77,0.29595868]
[1738210944876,1.10611818,677.17,675.77,0.29595868]
[1738210944877,0.27167379,677.16,675.77,0.29595868]
[1738210945072,0.27167379,677.15,675.77,0.29595868]
[1738210945379,0.27167379,677.14,675.77,0.29595868]
[1738210945578,0.27167379,677.16,675.77,0.29595868]
[1738210945770,0.27167379,677.15,675.77,0.29595868]
[1738210946072,0.27167379,677.14,675.77,0.29595868]
[1738210946276,0.27167379,677.16,675.77,0.29595868]
[1738210946475,0.27167379,677.15,675.77,0.29595868]
[1738210946676,0.27167379,677.14,675.77,0.29595868]
[1738210946876,0.27167379,677.13,675.77,0.29595868]
[1738210947078,0.27167379,677.12,675.77,0.29595868]
[1738210947378,0.27167379,677.11,675.77,0.29595868]
[1738210947573,1.10611818,677.05,675.78,0.24134055]
[1738210947774,0.27167379,677.04,675.8,0.29594554]
[1738210950177,1.10611818,677.05,675.8,0.29594554]
[1738210950380,0.27167754,677.04,675.8,0.29594554]
[1738210950578,0.27167754,677.18,675.8,0.29594554]
[1738210950775,0.27167754,677.17,675.8,0.29594554]
[1738210950974,0.27167754,677.18,675.8,0.29594554]
[1738210951173,0.27167754,677.17,675.8,0.29594554]
[1738210951373,0.27167754,677.18,675.8,0.29594554]
[1738210951577,0.27167754,677.17,675.8,0.29594554]
[1738210951775,0.27167754,677.18,675.8,0.29594554]
[1738210951976,1.10611818,677.19,675.8,0.29594554]
[1738210951977,0.27167754,677.17,675.8,0.29594554]
[1738210952176,0.27167754,677.16,675.8,0.29594554]
[1738210952382,0.27167754,677.15,675.8,0.29594554]
[1738210952582,0.27167754,677.14,675.8,0.29594554]
[1738210952779,0.27167754,677.18,675.8,0.29594554]
[1738210953083,0.27167754,677.17,675.8,0.29594554]
[1738210953280,0.27167754,677.18,675.8,0.29594554]
[1738210953474,1.10611818,677.19,675.8,0.29594554]
[1738210953679,0.27167904,677.18,675.8,0.29594554]
[1738210953883,0.27167904,677.2,675.8,0.29594554]
[1738210954082,0.27167772,677.19,675.8,0.29594554]
[1738210954282,0.27167772,677.18,675.8,0.29594554]
[1738210954483,0.27167772,677.2,675.8,0.29594554]
[1738210954682,0.27167772,677.19,675.8,0.29594554]
[1738210954875,0.27167772,677.2,675.8,0.29594554]
[1738210955079,0.27167772,677.19,675.8,0.29594554]
[1738210955277,0.27167772,677.2,675.8,0.29594554]
[1738210955480,0.27167772,677.19,675.8,0.29594554]
[1738210955681,0.27167772,677.2,675.8,0.29594554]
[1738210955885,0.27167772,677.19,675.8,0.29594554]
[1738210956084,0.27167772,677.2,675.8,0.29594554]
[1738210956785,1.10611818,677.09,675.8,0.29594554]
[1738210956985,0.27167772,677.08,675.8,0.29594554]
[1738210957185,0.2717164,677.07,675.8,0.29594554]
[1738210957486,0.2717164,677.06,675.8,0.29594554]
[1738210957687,0.2717164,677.08,675.8,0.29594554]
[1738210957886,1.10611818,677.09,675.8,0.29594554]
[1738210957887,0.2717164,677.07,675.8,0.29594554]
[1738210958187,0.2717164,677.06,675.8,0.29594554]
[1738210958379,0.2717164,677.08,675.8,0.29594554]
[1738210958581,0.2717164,677.07,675.8,0.29594554]
[1738210958880,0.27170901,677.06,675.8,0.29594554]
[1738210959083,0.27170901,677.08,675.8,0.29594554]
[1738210959386,0.27170901,677.07,675.8,0.29594554]
[1738210959587,0.27170901,677.08,675.8,0.29594554]
[1738210959885,0.27170901,677.07,675.8,0.29594554]
[1738210960085,0.27170901,677.08,675.8,0.29594554]
[1738210960287,0.27170901,677.07,675.8,0.29594554]
[1738210960488,0.27170901,677.08,675.8,0.29594554]
[1738210960787,1.10611818,676.86,675.8,0.29594554]
[1738210960980,0.27170901,676.85,675.8,0.29594554]
[1738210963888,0.27171068,676.84,675.8,0.29594554]
[1738210964089,1.37782886,676.85,675.8,0.29594554]
[1738210964292,0.27171068,676.84,675.8,0.29594554]
[1738210967989,0.27171068,676.83,675.8,0.29594554]
[1738210968186,0.27171068,676.82,675.8,0.29594554]
[1738210968495,0.27171068,676.81,675.8,0.29594554]
[1738210968686,0.27171068,676.87,675.8,0.29594554]
[1738210968891,0.27171068,676.86,675.8,0.29594554]